Workbook

Sheet Báo cáo Doanh thu Quý
A2: BÁO CÁO DOANH THU QUÝ | J2: HIỆN HÀNG ĐẦU | K2: 5 | L2: SẢN PHẨM
J4: HIỆN TOÀN BỘ CÁC MỤC KHÁC | K4: KHÔNG | L4: SẢN PHẨM
B34: SẢN PHẨM | C34: QUÝ 1 | D34: QUÝ 2 | E34: QUÝ 3 | F34: QUÝ 4 | G34: TỔNG CỘNG
B35: Khung | C35: 83200000 | D35: 93600000 | E35: 104000000 | F35: 104000000 | G35: =SUM(Bán_hàng[[#This Row],[QUÝ 1]:[QUÝ 4]]) -> 384800000
B36: Phanh Đĩa, Trước | C36: 6115200 | D36: 5197920 | E36: 6726720 | F36: 7644000 | G36: =SUM(Bán_hàng[[#This Row],[QUÝ 1]:[QUÝ 4]]) -> 25683840
B37: Bộ kẹp Phanh, Trước | C37: 4160000 | D37: 3536000 | E37: 4576000 | F37: 5200000 | G37: =SUM(Bán_hàng[[#This Row],[QUÝ 1]:[QUÝ 4]]) -> 17472000
B38: Phanh Đĩa, Sau | C38: 8320000 | D38: 7072000 | E38: 9152000 | F38: 10400000 | G38: =SUM(Bán_hàng[[#This Row],[QUÝ 1]:[QUÝ 4]]) -> 34944000
B39: Bộ kẹp Phanh, Sau | C39: 6115200 | D39: 5197920 | E39: 6726720 | F39: 7644000 | G39: =SUM(Bán_hàng[[#This Row],[QUÝ 1]:[QUÝ 4]]) -> 25683840
B40: Yên xe | C40: 4888000 | D40: 4154800 | E40: 665600 | F40: 6110000 | G40: =SUM(Bán_hàng[[#This Row],[QUÝ 1]:[QUÝ 4]]) -> 15818400
B41: Phuộc xe | C41: 2080000 | D41: 1768000 | E41: 2288000 | F41: 2600000 | G41: =SUM(Bán_hàng[[#This Row],[QUÝ 1]:[QUÝ 4]]) -> 8736000
B42: Dây cáp Phanh | C42: 6240000 | D42: 5304000 | E42: 6864000 | F42: 7800000 | G42: =SUM(Bán_hàng[[#This Row],[QUÝ 1]:[QUÝ 4]]) -> 26208000
B43: Cần sang số | C43: 5200000 | D43: 4420000 | E43: 5720000 | F43: 6500000 | G43: =SUM(Bán_hàng[[#This Row],[QUÝ 1]:[QUÝ 4]]) -> 21840000
B44: Bánh răng Sau | C44: 8320000 | D44: 7072000 | E44: 9152000 | F44: 10400000 | G44: =SUM(Bán_hàng[[#This Row],[QUÝ 1]:[QUÝ 4]]) -> 34944000
B45: Bánh răng Trước | C45: 4160000 | D45: 3536000 | E45: 4576000 | F45: 5200000 | G45: =SUM(Bán_hàng[[#This Row],[QUÝ 1]:[QUÝ 4]]) -> 17472000
B46: Cần Điều khiển | C46: 39416000 | D46: 33503600 | E46: 71656000 | F46: 69326400 | G46: =SUM(Bán_hàng[[#This Row],[QUÝ 1]:[QUÝ 4]]) -> 213902000
B47: Cần Phanh | C47: 11315200 | D47: 9617920 | E47: 12446720 | F47: 14144000 | G47: =SUM(Bán_hàng[[#This Row],[QUÝ 1]:[QUÝ 4]]) -> 47523840
B48: Ghế ngồi | C48: 4160000 | D48: 3536000 | E48: 4576000 | F48: 5200000 | G48: =SUM(Bán_hàng[[#This Row],[QUÝ 1]:[QUÝ 4]]) -> 17472000
B49: Bộ kẹp Cần Điều khiển | C49: 1248000 | D49: 1060800 | E49: 1372800 | F49: 1560000 | G49: =SUM(Bán_hàng[[#This Row],[QUÝ 1]:[QUÝ 4]]) -> 5241600
B50: Túi yên xe | C50: 50190400 | D50: 42661840 | E50: 83200000 | F50: 62738000 | G50: =SUM(Bán_hàng[[#This Row],[QUÝ 1]:[QUÝ 4]]) -> 238790240
B51: Căm xe | C51: 4846400 | D51: 4119440 | E51: 5331040 | F51: 6058000 | G51: =SUM(Bán_hàng[[#This Row],[QUÝ 1]:[QUÝ 4]]) -> 20354880
B52: Vành bánh xe | C52: 7363200 | D52: 6258720 | E52: 8099520 | F52: 9204000 | G52: =SUM(Bán_hàng[[#This Row],[QUÝ 1]:[QUÝ 4]]) -> 30925440
B53: Bánh xe | C53: 8798400 | D53: 7478640 | E53: 9678240 | F53: 10998000 | G53: =SUM(Bán_hàng[[#This Row],[QUÝ 1]:[QUÝ 4]]) -> 36953280
B54: Tay phanh | C54: 46217600 | D54: 39284960 | E54: 50839360 | F54: 57772000 | G54: =SUM(Bán_hàng[[#This Row],[QUÝ 1]:[QUÝ 4]]) -> 194113920
B55: Băng keo tăng ma sát | C55: 32248320 | D55: 27411072 | E55: 35473152 | F55: 40310400 | G55: =SUM(Bán_hàng[[#This Row],[QUÝ 1]:[QUÝ 4]]) -> 135442944
B56: Đệm | C56: 624000 | D56: 530400 | E56: 686400 | F56: 780000 | G56: =SUM(Bán_hàng[[#This Row],[QUÝ 1]:[QUÝ 4]]) -> 2620800
B57: Dây xích | C57: 4326400 | D57: 3677440 | E57: 4759040 | F57: 5408000 | G57: =SUM(Bán_hàng[[#This Row],[QUÝ 1]:[QUÝ 4]]) -> 18170880
B58: Bộ trật bánh | C58: 7404800 | D58: 6294080 | E58: 8145280 | F58: 9256000 | G58: =SUM(Bán_hàng[[#This Row],[QUÝ 1]:[QUÝ 4]]) -> 31100160
B59: Trục bánh xe Nhả nhanh | C59: 5366400 | D59: 4561440 | E59: 5903040 | F59: 6708000 | G59: =SUM(Bán_hàng[[#This Row],[QUÝ 1]:[QUÝ 4]]) -> 22538880
B60: Trục bánh xe Tiêu chuẩn | C60: 8611200 | D60: 7319520 | E60: 9472320 | F60: 10764000 | G60: =SUM(Bán_hàng[[#This Row],[QUÝ 1]:[QUÝ 4]]) -> 36167040
B61: Chân ga | C61: 7675200 | D61: 6523920 | E61: 8442720 | F61: 9594000 | G61: =SUM(Bán_hàng[[#This Row],[QUÝ 1]:[QUÝ 4]]) -> 32235840
B62: Chắn xích | C62: 6739200 | D62: 5728320 | E62: 7413120 | F62: 8424000 | G62: =SUM(Bán_hàng[[#This Row],[QUÝ 1]:[QUÝ 4]]) -> 28304640
B63: Kính | C63: 1809600 | D63: 1538160 | E63: 1990560 | F63: 2262000 | G63: =SUM(Bán_hàng[[#This Row],[QUÝ 1]:[QUÝ 4]]) -> 7600320

Sheet tính toán (hidden)
A1: *** Nên để ẩn trang tính này****
E4: Sản phẩm | F4: QUÝ 1 | G4: QUÝ 2 | H4: QUÝ 3 | I4: QUÝ 4 | J4: Tổng cộng
B5: 1 | C5: =IF($B5>n,"",LARGE(Bán_hàng[TỔNG CỘNG],1)) -> 384800000 | D5: =IF($B5>n,"",IF(C4=C5,MATCH(C5,OFFSET(Bán_hàng[TỔNG CỘNG],D4,),0)+D4,MATCH(C5,Bán_hàng[TỔNG CỘNG],0))) -> 1 | E5: =IF($B5>n,"",INDEX(Bán_hàng[SẢN PHẨM],D5)) -> Khung | F5: =IF($B5>n,"",INDEX(Bán_hàng[QUÝ 1],$D5)) -> 83200000 | G5: =IF($B5>n,"",INDEX(Bán_hàng[QUÝ 2],$D5)) -> 93600000 | H5: =IF($B5>n,"",INDEX(Bán_hàng[QUÝ 3],$D5)) -> 104000000 | I5: =IF($B5>n,"",INDEX(Bán_hàng[QUÝ 4],$D5)) -> 104000000 | J5: =IF($B5>n,"",SUM(F5:I5)) -> 384800000
B6: 2 | C6: =IF($B6>n,"",LARGE(Bán_hàng[TỔNG CỘNG],2)) -> 238790240 | D6: =IF($B6>n,"",IF(C5=C6,MATCH(C6,OFFSET(Bán_hàng[TỔNG CỘNG],D5,),0)+D5,MATCH(C6,Bán_hàng[TỔNG CỘNG],0))) -> 16 | E6: =IF($B6>n,"",INDEX(Bán_hàng[SẢN PHẨM],D6)) -> Túi yên xe | F6: =IF($B6>n,"",INDEX(Bán_hàng[QUÝ 1],$D6)) -> 50190400 | G6: =IF($B6>n,"",INDEX(Bán_hàng[QUÝ 2],$D6)) -> 42661840 | H6: =IF($B6>n,"",INDEX(Bán_hàng[QUÝ 3],$D6)) -> 83200000 | I6: =IF($B6>n,"",INDEX(Bán_hàng[QUÝ 4],$D6)) -> 62738000 | J6: 238790240
B7: 3 | C7: =IF($B7>n,"",LARGE(Bán_hàng[TỔNG CỘNG],3)) -> 213902000 | D7: =IF($B7>n,"",IF(C6=C7,MATCH(C7,OFFSET(Bán_hàng[TỔNG CỘNG],D6,),0)+D6,MATCH(C7,Bán_hàng[TỔNG CỘNG],0))) -> 12 | E7: =IF($B7>n,"",INDEX(Bán_hàng[SẢN PHẨM],D7)) -> Cần Điều khiển | F7: =IF($B7>n,"",INDEX(Bán_hàng[QUÝ 1],$D7)) -> 39416000 | G7: =IF($B7>n,"",INDEX(Bán_hàng[QUÝ 2],$D7)) -> 33503600 | H7: =IF($B7>n,"",INDEX(Bán_hàng[QUÝ 3],$D7)) -> 71656000 | I7: =IF($B7>n,"",INDEX(Bán_hàng[QUÝ 4],$D7)) -> 69326400 | J7: 213902000
B8: 4 | C8: =IF($B8>n,"",LARGE(Bán_hàng[TỔNG CỘNG],4)) -> 194113920 | D8: =IF($B8>n,"",IF(C7=C8,MATCH(C8,OFFSET(Bán_hàng[TỔNG CỘNG],D7,),0)+D7,MATCH(C8,Bán_hàng[TỔNG CỘNG],0))) -> 20 | E8: =IF($B8>n,"",INDEX(Bán_hàng[SẢN PHẨM],D8)) -> Tay phanh | F8: =IF($B8>n,"",INDEX(Bán_hàng[QUÝ 1],$D8)) -> 46217600 | G8: =IF($B8>n,"",INDEX(Bán_hàng[QUÝ 2],$D8)) -> 39284960 | H8: =IF($B8>n,"",INDEX(Bán_hàng[QUÝ 3],$D8)) -> 50839360 | I8: =IF($B8>n,"",INDEX(Bán_hàng[QUÝ 4],$D8)) -> 57772000 | J8: 194113920
B9: 5 | C9: =IF($B9>n,"",LARGE(Bán_hàng[TỔNG CỘNG],5)) -> 135442944 | D9: =IF($B9>n,"",IF(C8=C9,MATCH(C9,OFFSET(Bán_hàng[TỔNG CỘNG],D8,),0)+D8,MATCH(C9,Bán_hàng[TỔNG CỘNG],0))) -> 21 | E9: =IF($B9>n,"",INDEX(Bán_hàng[SẢN PHẨM],D9)) -> Băng keo tăng ma sát | F9: =IF($B9>n,"",INDEX(Bán_hàng[QUÝ 1],$D9)) -> 32248320 | G9: =IF($B9>n,"",INDEX(Bán_hàng[QUÝ 2],$D9)) -> 27411072 | H9: =IF($B9>n,"",INDEX(Bán_hàng[QUÝ 3],$D9)) -> 35473152 | I9: =IF($B9>n,"",INDEX(Bán_hàng[QUÝ 4],$D9)) -> 40310400 | J9: 135442944
B10: 6 | C10: =IF($B10>n,"",LARGE(Bán_hàng[TỔNG CỘNG],6)) ->  | D10: =IF($B10>n,"",IF(C9=C10,MATCH(C10,OFFSET(Bán_hàng[TỔNG CỘNG],D9,),0)+D9,MATCH(C10,Bán_hàng[TỔNG CỘNG],0))) ->  | E10: =IF($B10>n,"",INDEX(Bán_hàng[SẢN PHẨM],D10)) ->  | F10: =IF($B10>n,"",INDEX(Bán_hàng[QUÝ 1],$D10)) ->  | G10: =IF($B10>n,"",INDEX(Bán_hàng[QUÝ 2],$D10)) ->  | H10: =IF($B10>n,"",INDEX(Bán_hàng[QUÝ 3],$D10)) ->  | I10: =IF($B10>n,"",INDEX(Bán_hàng[QUÝ 4],$D10)) -> 
B11: 7 | C11: =IF($B11>n,"",LARGE(Bán_hàng[TỔNG CỘNG],7)) ->  | D11: =IF($B11>n,"",IF(C10=C11,MATCH(C11,OFFSET(Bán_hàng[TỔNG CỘNG],D10,),0)+D10,MATCH(C11,Bán_hàng[TỔNG CỘNG],0))) ->  | E11: =IF($B11>n,"",INDEX(Bán_hàng[SẢN PHẨM],D11)) ->  | F11: =IF($B11>n,"",INDEX(Bán_hàng[QUÝ 1],$D11)) ->  | G11: =IF($B11>n,"",INDEX(Bán_hàng[QUÝ 2],$D11)) ->  | H11: =IF($B11>n,"",INDEX(Bán_hàng[QUÝ 3],$D11)) ->  | I11: =IF($B11>n,"",INDEX(Bán_hàng[QUÝ 4],$D11)) -> 
B12: 8 | C12: =IF($B12>n,"",LARGE(Bán_hàng[TỔNG CỘNG],8)) ->  | D12: =IF($B12>n,"",IF(C11=C12,MATCH(C12,OFFSET(Bán_hàng[TỔNG CỘNG],D11,),0)+D11,MATCH(C12,Bán_hàng[TỔNG CỘNG],0))) ->  | E12: =IF($B12>n,"",INDEX(Bán_hàng[SẢN PHẨM],D12)) ->  | F12: =IF($B12>n,"",INDEX(Bán_hàng[QUÝ 1],$D12)) ->  | G12: =IF($B12>n,"",INDEX(Bán_hàng[QUÝ 2],$D12)) ->  | H12: =IF($B12>n,"",INDEX(Bán_hàng[QUÝ 3],$D12)) ->  | I12: =IF($B12>n,"",INDEX(Bán_hàng[QUÝ 4],$D12)) -> 
B13: 9 | C13: =IF($B13>n,"",LARGE(Bán_hàng[TỔNG CỘNG],9)) ->  | D13: =IF($B13>n,"",IF(C12=C13,MATCH(C13,OFFSET(Bán_hàng[TỔNG CỘNG],D12,),0)+D12,MATCH(C13,Bán_hàng[TỔNG CỘNG],0))) ->  | E13: =IF($B13>n,"",INDEX(Bán_hàng[SẢN PHẨM],D13)) ->  | F13: =IF($B13>n,"",INDEX(Bán_hàng[QUÝ 1],$D13)) ->  | G13: =IF($B13>n,"",INDEX(Bán_hàng[QUÝ 2],$D13)) ->  | H13: =IF($B13>n,"",INDEX(Bán_hàng[QUÝ 3],$D13)) ->  | I13: =IF($B13>n,"",INDEX(Bán_hàng[QUÝ 4],$D13)) -> 
B14: 10 | C14: =IF($B14>n,"",LARGE(Bán_hàng[TỔNG CỘNG],10)) ->  | D14: =IF($B14>n,"",IF(C13=C14,MATCH(C14,OFFSET(Bán_hàng[TỔNG CỘNG],D13,),0)+D13,MATCH(C14,Bán_hàng[TỔNG CỘNG],0))) ->  | E14: =IF($B14>n,"",INDEX(Bán_hàng[SẢN PHẨM],D14)) ->  | F14: =IF($B14>n,"",INDEX(Bán_hàng[QUÝ 1],$D14)) ->  | G14: =IF($B14>n,"",INDEX(Bán_hàng[QUÝ 2],$D14)) ->  | H14: =IF($B14>n,"",INDEX(Bán_hàng[QUÝ 3],$D14)) ->  | I14: =IF($B14>n,"",INDEX(Bán_hàng[QUÝ 4],$D14)) -> 
E15: ="" -> 
B16: =Bao_gồm_Phần_khác="yes" -> FALSE | E16: Khác | F16: =SUM(Bán_hàng[QUÝ 1]) - SUM(F5:F14) -> 135886400 | G16: =SUM(Bán_hàng[QUÝ 2]) - SUM(G5:G14) -> 115503440 | H16: =SUM(Bán_hàng[QUÝ 3]) - SUM(H5:H14) -> 144763840 | I16: =SUM(Bán_hàng[QUÝ 4]) - SUM(I5:I14) -> 169858000 | J16: =SUM(Bán_hàng[TỔNG CỘNG]) - SUM(J5:J14) -> 566011680
E18: TỔNG CỘNG | F18: =SUM(Bán_hàng[QUÝ 1]) -> 387158720 | G18: =SUM(Bán_hàng[QUÝ 2]) -> 351964912 | H18: =SUM(Bán_hàng[QUÝ 3]) -> 489932352 | I18: =SUM(Bán_hàng[QUÝ 4]) -> 504004800 | J18: =SUM(Bán_hàng[TỔNG CỘNG]) -> 1733060784
B22: ="TỔNG CỘNG VÀ HÀNG ĐẦU" & n & " SẢN PHẨM" -> TỔNG CỘNG VÀ HÀNG ĐẦU5 SẢN PHẨM
